[Event "EYTCC Open U18 2018"]
[Site "Bad Blankeburg"]
[Date "2018.07.16"]
[Round "5"]
[White "Bronstein, Or"]
[Black "Buckels, Valentin"]
[Result "0-1"]
[ECO "A17"]
[WhiteElo "2350"]
[BlackElo "2353"]
[Annotator "NA"]
[PlyCount "78"]
[EventDate "2018.07.12"]
[EventType "swiss"]
[EventCountry "GER"]
[SourceTitle "playchess.com"]
[Source "ChessBase"]
[SourceQuality "1"]
[TimeControl "40/5400+30:1800+30"]

1. Nf3 {[%emt 0:00:00]} Nf6 {[%emt 0:00:00]} 2. c4 {[%emt 0:00:35]} e6 {[%emt 0:00:00]} 3. Nc3 {[%emt 0:00:45]} Bb4 {[%emt 0:00:00]} 4. Qc2 {[%emt 0:00:09]} d6 {[%emt 0:01:04]} 5. a3 {[%emt 0:00:43]} Bxc3 {[%emt 0:00:06]} 6. Qxc3 {[%emt 0:00:02]} e5 {[%emt 0:02:07]} 7. g3 {[%emt 0:00:59]} b6 {[%emt 0:02:03]} 8. Bg2 {[%emt 0:00:28]} Bb7 {[%emt 0:00:05]} 9. O-O {[%emt 0:00:15]} O-O {[%emt 0:02:55]} 10. b4 {[%emt 0:00:39]} a5 {[%emt 0:01:49]} 11. Bb2 {[%emt 0:00:25]} Nbd7 {[%emt 0:04:16]} 12. d3 {[%emt 0:00:27]} Qe7 {[%emt 0:09:50]} 13. e4 {[%emt 0:00:26] A17: English Opening: 1...Nf6 with ...Bb4} axb4 {[%emt 0:05:53]} 14. axb4 {[%emt 0:00:12]} Rxa1 {[%emt 0:00:18]} 15. Bxa1 {[%emt 0:02:53]} c5 $146 {[%emt 0:07:25]} ({Predecessor:} 15... c6 16. Nh4 d5 17. Nf5 Qe6 18. f4 Re8 19. Qd2 dxe4 20. dxe4 c5 21. fxe5 Nxe5 22. Qg5 g6 23. Nh6+ Kg7 24. Rxf6 Qxf6 25. Nf5+ {1-0 (25) Iskusnyh,S (2440)-Krishilovsky,A (2150) Novgorod 1997}) 16. Nh4 {[%emt 0:06:31]} g6 {[%emt 0:07:00] [#]} 17. f4 {[%emt 0:00:26]} (17. b5 $1 $16) 17... Nh5 {[%emt 0:02:03]} 18. Bh3 {[%emt 0:08:43]} cxb4 {[%emt 0:11:04]} 19. Qxb4 {[%emt 0:02:34]} Nc5 {[%emt 0:02:07]} (19... exf4 $11 {bleibt in der Remisbreite.} 20. Bxd7 Qxd7) 20. Qc3 {[%emt 0:08:03]} Nxf4 {[%emt 0:04:15]} 21. Rxf4 {[%emt 0:01:07]} Na4 {[%emt 0:00:13]} 22. Qc2 {[%emt 0:13:02]} exf4 {[%emt 0:00:09]} 23. Qxa4 {[%emt 0:00:02]} fxg3 {[%emt 0:00:31]} 24. Ng2 $2 {[%emt 0:13:45]} (24. hxg3 $11 {and White stays safe.} Ra8 25. Qd1) 24... Qg5 {[%emt 0:03:56]} 25. Qc2 {[%emt 0:01:19]} Qc5+ {[%emt 0:07:22]} 26. Kh1 {[%emt 0:07:31]} Qh5 {[%emt 0:00:20]} 27. Qc3 {[%emt 0:00:24]} f6 {[%emt 0:00:16]} 28. Be6+ {[%emt 0:00:46]} Kg7 {[%emt 0:00:10]} 29. h4 {[%emt 0:05:18]} Qd1+ {[%emt 0:01:25]} 30. Qe1 {[%emt 0:00:23]} Qxd3 {[%emt 0:00:19]} 31. Kg1 {[%emt 0:02:36]} Bxe4 {[%emt 0:04:03]} 32. Bd5 {[%emt 0:00:40]} Re8 {[%emt 0:02:02]} 33. Qf1 {[%emt 0:04:41]} Qxf1+ {[%emt 0:00:34]} 34. Kxf1 {[%emt 0:00:01]} Bxd5 {[%emt 0:00:27]} 35. cxd5 {[%emt 0:00:02]} Re4 {[%emt 0:00:07]} 36. Ne1 {[%emt 0:02:19]} Rxh4 {[%emt 0:00:20]} 37. Kg2 {[%emt 0:00:01]} Ra4 {[%emt 0:00:37]} 38. Bb2 {[%emt 0:00:17]} Re4 {[%emt 0:00:32]} 39. Nd3 $19 {[%emt 0:00:13]} Re2+ {[%emt 0:00:10]} 0-1

[Event "EYTCC Open U18 2018"]
[Site "Bad Blankeburg"]
[Date "2018.07.16"]
[Round "5"]
[White "Iliaguev, Nisim"]
[Black "Roseneck, Jonas"]
[Result "1/2-1/2"]
[ECO "E04"]
[WhiteElo "2335"]
[BlackElo "2182"]
[Annotator "NA"]
[PlyCount "138"]
[EventDate "2018.07.12"]
[EventType "swiss"]
[EventCountry "GER"]
[SourceTitle "playchess.com"]
[Source "ChessBase"]
[SourceQuality "1"]
[TimeControl "40/5400+30:1800+30"]

1. d4 {[%emt 0:00:00]} Nf6 {[%emt 0:00:00]} 2. c4 {[%emt 0:00:00]} e6 {[%emt 0:00:00]} 3. g3 {[%emt 0:00:00]} d5 {[%emt 0:00:00]} 4. Nf3 {[%emt 0:00:00]} dxc4 {[%emt 0:00:00]} 5. Bg2 {[%emt 0:00:00]} a6 {[%emt 0:00:02]} 6. a4 {[%emt 0:05:22]} Nc6 {[%emt 0:06:36]} 7. O-O {[%emt 0:03:15]} Rb8 {[%emt 0:05:09]} 8. a5 {[%emt 0:18:30] LiveBook: 36 Games} Bb4 {[%emt 0:24:57] E04: Open Catalan: 5 Nf3} 9. Qc2 {[%emt 0:05:30]} O-O {[%emt 0:12:29]} 10. Qxc4 {[%emt 0:01:21]} Qd5 {[%emt 0:00:10]} 11. Qxd5 {[%emt 0:10:56]} exd5 {[%emt 0:00:50]} 12. Bf4 {[%emt 0:02:36]} Ne8 $146 {[%emt 0:06:45]} ({Predecessor:} 12... Bf5 13. Bxc7 Rbc8 14. Bb6 Rfe8 15. e3 Bd3 16. Bh3 Bxf1 17. Bxc8 {0-1 (57) Konev,V (2016)-Dorer,M (2372) ICCF email 2013}) 13. Bd2 {[%emt 0:09:50]} Bd6 {[%emt 0:01:59]} 14. Rc1 {[%emt 0:06:55]} Ne7 {[%emt 0:03:40]} 15. Nc3 {[%emt 0:03:34]} c6 {[%emt 0:03:06]} 16. e4 {[%emt 0:01:06]} dxe4 {[%emt 0:00:09]} 17. Nxe4 {[%emt 0:00:05]} Nd5 {[%emt 0:01:55]} 18. Ne5 {[%emt 0:03:47]} Be7 {[%emt 0:03:56]} 19. Nc5 {[%emt 0:01:48]} Nef6 {[%emt 0:00:31]} 20. Bxd5 {[%emt 0:00:21]} cxd5 {[%emt 0:00:06]} 21. Bb4 {[%emt 0:01:49]} Re8 {[%emt 0:03:39]} 22. Ncd3 {[%emt 0:04:31]} Bxb4 {[%emt 0:00:59]} 23. Nxb4 {[%emt 0:00:01]} Be6 {[%emt 0:01:40]} 24. Nbd3 {[%emt 0:03:40]} Rec8 {[%emt 0:07:56]} 25. Nc5 {[%emt 0:01:01]} Ne4 {[%emt 0:02:01]} 26. b4 {[%emt 0:04:13]} Nd6 {[%emt 0:00:55]} 27. Rd1 {[%emt 0:01:28]} Rc7 {[%emt 0:00:24]} 28. f3 {[%emt 0:01:56]} Re8 {[%emt 0:02:09]} 29. Re1 {[%emt 0:04:07]} Bf5 {[%emt 0:04:17]} 30. g4 {[%emt 0:00:21]} Bg6 {[%emt 0:02:03]} 31. Ned7 {[%emt 0:01:32]} f6 {[%emt 0:00:58]} 32. Nb6 {[%emt 0:01:04]} Rxe1+ {[%emt 0:01:44]} 33. Rxe1 {[%emt 0:00:01]} Bf7 {[%emt 0:00:01]} 34. Kf2 {[%emt 0:01:20]} Nb5 {[%emt 0:01:45]} 35. Rd1 {[%emt 0:00:02]} Re7 {[%emt 0:00:13]} 36. Rd2 {[%emt 0:02:02]} Na7 {[%emt 0:02:17]} 37. Rc2 {[%emt 0:02:42]} h6 {[%emt 0:01:15]} 38. h3 {[%emt 0:01:00]} h5 {[%emt 0:01:33]} 39. gxh5 {[%emt 0:00:31]} Nc6 {[%emt 0:00:07]} 40. Nxa6 {[%emt 0:00:47]} Nxd4 {[%emt 0:00:53]} 41. Rd2 {[%emt 0:30:42]} Nb3 {[%emt 0:04:08]} 42. Rd3 {[%emt 0:00:00]} Nxa5 {[%emt 0:02:20]} 43. Nxd5 {[%emt 0:00:00]} Re5 {[%emt 0:02:41]} 44. Nac7 {[%emt 0:00:00]} Nc4 {[%emt 0:03:29] [#]} 45. h6 $1 {[%emt 0:00:00]} Rh5 {[%emt 0:03:56]} 46. hxg7 {[%emt 0:00:00]} Rxh3 {[%emt 0:04:54]} 47. Kg2 {[%emt 0:00:00]} Ne5 {[%emt 0:05:23]} 48. Ra3 {[%emt 0:00:00]} Rh4 {[%emt 0:03:04] [#]} 49. Ne7+ $1 {[%emt 0:00:00]} ({Stronger than} 49. Nxf6+ Kxg7 50. Nfe8+ Bxe8 $11) 49... Kh7 {[%emt 0:00:01]} 50. Ra8 $18 {[%emt 0:00:14]} Rxb4 {[%emt 0:00:05]} 51. g8=Q+ {[%emt 0:01:51]} Bxg8 {[%emt 0:00:01]} 52. Nxg8 {[%emt 0:00:31]} Rb2+ {[%emt 0:01:30]} 53. Kg3 {[%emt 0:00:12]} Rb3 {[%emt 0:00:02]} 54. Nxf6+ {[%emt 0:00:26]} Kg6 {[%emt 0:00:01]} 55. Nfd5 {[%emt 0:01:30]} Rxf3+ {[%emt 0:00:35]} 56. Kg2 {[%emt 0:00:01]} Rb3 {[%emt 0:00:37]} 57. Rf8 {[%emt 0:00:28]} Rb2+ {[%emt 0:01:44]} 58. Kh3 {[%emt 0:01:13]} Rb3+ {[%emt 0:00:27]} 59. Kh4 {[%emt 0:00:40]} Nf3+ {[%emt 0:00:02]} 60. Kg3 {[%emt 0:00:05]} Ne5+ {[%emt 0:01:15]} 61. Kf2 {[%emt 0:00:08]} b5 {[%emt 0:01:03]} 62. Rf6+ {[%emt 0:00:16]} Kh7 {[%emt 0:00:34]} 63. Rb6 {[%emt 0:01:25]} b4 {[%emt 0:00:24]} 64. Ke2 {[%emt 0:01:14]} Rb2+ {[%emt 0:00:02]} 65. Kd1 {[%emt 0:00:30]} b3 {[%emt 0:01:06]} 66. Nc3 {[%emt 0:01:00]} Rd2+ {[%emt 0:00:44]} 67. Kxd2 {[%emt 0:00:40]} Nc4+ {[%emt 0:00:01]} 68. Kc1 {[%emt 0:00:01]} Nxb6 {[%emt 0:00:10]} 69. Kb2 {[%emt 0:00:10]} Kg6 {[%emt 0:00:14]} 1/2-1/2

[Event "EYTCC Open U18 2018"]
[Site "Bad Blankeburg"]
[Date "2018.07.16"]
[Round "5"]
[White "Subelj, Jan"]
[Black "Nikitenko, Mihail"]
[Result "1-0"]
[ECO "C84"]
[WhiteElo "2327"]
[BlackElo "2371"]
[Annotator "NA"]
[PlyCount "105"]
[EventDate "2018.07.12"]
[EventType "swiss"]
[EventCountry "GER"]
[SourceTitle "playchess.com"]
[Source "ChessBase"]
[SourceQuality "1"]
[TimeControl "40/5400+30:1800+30"]

1. e4 {[%emt 0:00:01]} e5 {[%emt 0:00:00]} 2. Nf3 {[%emt 0:00:53]} Nc6 {[%emt 0:00:00]} 3. Bb5 {[%emt 0:00:13]} a6 {[%emt 0:00:00]} 4. Ba4 {[%emt 0:00:03]} Nf6 {[%emt 0:00:00]} 5. O-O {[%emt 0:00:08]} Be7 {[%emt 0:00:00]} 6. d3 {[%emt 0:01:21]} b5 {[%emt 0:07:13]} 7. Bb3 {[%emt 0:00:39]} d6 {[%emt 0:00:16]} 8. a3 {[%emt 0:01:34]} O-O {[%emt 0:00:16]} 9. Nc3 {[%emt 0:00:04]} Bg4 {[%emt 0:00:10]} 10. Be3 {[%emt 0:00:05]} Nd4 {[%emt 0:00:04] C84: Closed Ruy Lopez: Unusual White 6th moves} 11. Bxd4 {[%emt 0:00:05]} exd4 {[%emt 0:00:04]} 12. Nd5 {[%emt 0:00:05]} Nxd5 {[%emt 0:00:04]} 13. Bxd5 {[%emt 0:00:09]} Rc8 {[%emt 0:00:03]} 14. h3 {[%emt 0:48:26] LiveBook: 7 Games} (14. a4 c6 15. Bb3 d5 16. h3 Bh5 17. axb5 axb5 18. exd5 {1-0 (47) Karjakin,S (2782)-Aronian,L (2764) Paris 2018}) 14... Bxf3 {[%emt 0:02:11]} 15. Qxf3 {[%emt 0:00:03]} c6 {[%emt 0:01:26]} 16. Bb3 {[%emt 0:01:10]} Qb6 $146 {[%emt 0:10:41]} ({Predecessor:} 16... c5 17. Bd5 c4 18. a4 {1-0 (30) Fogarasi,T (2456)-Hajnal,Z (2357) Budapest 2000}) 17. a4 {[%emt 0:02:26]} c5 {[%emt 0:04:33]} 18. axb5 {[%emt 0:00:15]} axb5 {[%emt 0:00:03]} 19. Bd5 {[%emt 0:00:25]} c4 {[%emt 0:00:05]} 20. Ra2 {[%emt 0:04:25]} cxd3 {[%emt 0:04:43]} 21. cxd3 {[%emt 0:01:36]} Qc5 {[%emt 0:05:44]} 22. Rfa1 {[%emt 0:02:10]} Bf6 {[%emt 0:00:18]} 23. Ra7 {[%emt 0:04:06]} Qc2 {[%emt 0:00:38]} 24. b3 {[%emt 0:00:28]} Rc3 {[%emt 0:11:49]} 25. Qf5 {[%emt 0:01:12]} Rc7 {[%emt 0:05:21]} 26. g3 {[%emt 0:06:10]} h6 {[%emt 0:08:41]} 27. Kg2 {[%emt 0:02:33]} Qc5 {[%emt 0:00:16]} 28. Rxc7 {[%emt 0:00:18]} Qxc7 {[%emt 0:00:04]} 29. Ra6 {[%emt 0:00:31]} Rd8 {[%emt 0:08:08]} 30. Rc6 {[%emt 0:01:40]} Qa7 {[%emt 0:00:04]} 31. Rc8 {[%emt 0:00:24]} Qe7 {[%emt 0:02:58]} 32. Rxd8+ {[%emt 0:02:14]} Qxd8 {[%emt 0:00:03]} 33. Bc6 {[%emt 0:00:11]} b4 {[%emt 0:01:00]} 34. Qb5 {[%emt 0:00:08]} Qc8 {[%emt 0:03:11]} 35. Bd5 {[%emt 0:00:11]} h5 {[%emt 0:00:04]} 36. Qxb4 {[%emt 0:00:13]} h4 {[%emt 0:00:14]} 37. Qxd6 {[%emt 0:01:33]} hxg3 {[%emt 0:00:04]} 38. Qxg3 {[%emt 0:00:13]} Qd8 {[%emt 0:02:32]} 39. b4 {[%emt 0:04:33]} Qe7 {[%emt 0:00:13]} 40. b5 {[%emt 0:00:43]} Be5 {[%emt 0:00:05]} 41. Qg4 {[%emt 0:30:43]} Bc7 {[%emt 0:30:44]} 42. Qc8+ {[%emt 0:01:02]} Kh7 {[%emt 0:00:04]} 43. Qf5+ {[%emt 0:00:06]} Kg8 {[%emt 0:00:04]} 44. f4 {[%emt 0:00:45]} Ba5 {[%emt 0:00:12]} 45. Qc8+ {[%emt 0:00:53]} Kh7 {[%emt 0:00:04]} 46. Qf5+ {[%emt 0:00:04]} Kg8 {[%emt 0:00:03]} 47. e5 {[%emt 0:00:24]} Qc7 {[%emt 0:00:04]} 48. Kf3 {[%emt 0:00:29]} Qe7 {[%emt 0:07:13]} 49. Ke4 {[%emt 0:01:42]} Bd8 {[%emt 0:02:55]} 50. e6 $18 {[%emt 0:01:13]} Qh4 {[%emt 0:00:02]} 51. exf7+ {[%emt 0:01:59]} Kf8 {[%emt 0:00:03]} 52. Qe6 {[%emt 0:04:32]} Qh7+ {[%emt 0:00:33]} 53. Kxd4 {[%emt 0:00:18]} 1-0

[Event "EYTCC Open U18 2018"]
[Site "Bad Blankeburg"]
[Date "2018.07.16"]
[Round "5"]
[White "Urban, Konstantin"]
[Black "Parkhov, Yair"]
[Result "0-1"]
[ECO "B15"]
[WhiteElo "2325"]
[BlackElo "2364"]
[Annotator "NA"]
[PlyCount "136"]
[EventDate "2018.07.12"]
[EventType "swiss"]
[EventCountry "GER"]
[SourceTitle "playchess.com"]
[Source "ChessBase"]
[SourceQuality "1"]
[TimeControl "40/5400+30:1800+30"]

1. e4 c6 2. d4 d5 3. Nd2 dxe4 4. Nxe4 Nf6 5. Nxf6+ exf6 6. c3 Bd6 7. Bd3 O-O 8. Qc2 Re8+ {B15: Caro-Kann: 3 Nc3: 3...g6 and 3...dxe4 4 Nxe4 Nf6 5 Nxf6+ exf6} 9. Ne2 h5 (9... g6 10. h4 Nd7 11. h5 Nf8 12. Be3 Be6 13. O-O-O a5 14. Kb1 a4 15. hxg6 fxg6 16. c4 Bf7 17. Nc3 a3 18. b3 f5 {0-1 (29) Saric,I (2669)-Jobava,B (2690) Riadh 2017}) 10. Be3 {[%emt 0:08:54]} Nd7 {[%emt 0:01:39]} 11. O-O-O {[%emt 0:15:34]} Nf8 {[%emt 0:00:15] LiveBook: 9 Partien} 12. Kb1 {[%emt 0:01:34]} Be6 {[%emt 0:00:20]} 13. Nf4 {[%emt 0:04:04]} Bxf4 {[%emt 0:01:10]} 14. Bxf4 {[%emt 0:01:03]} Ng6 $146 {[%emt 0:08:54]} ({Predecessor:} 14... b5 15. Be4 Bd5 16. Rhe1 Bxe4 17. Rxe4 {0-1 (52) Abrahamyan,T (2364)-Krush,I (2444) Saint Louis 2017}) 15. Be3 {[%emt 0:04:55]} Qd5 {[%emt 0:11:25]} 16. c4 {[%emt 0:04:24]} Qd7 {[%emt 0:00:09]} 17. Ka1 {[%emt 0:06:54]} Ne7 {[%emt 0:14:11]} 18. h3 {[%emt 0:12:08]} b5 {[%emt 0:16:30]} 19. cxb5 {[%emt 0:02:25]} cxb5 {[%emt 0:07:08]} 20. Qc5 {[%emt 0:01:13]} Qd5 {[%emt 0:02:33]} 21. Qxd5 {[%emt 0:00:26]} Bxd5 {[%emt 0:00:55]} 22. Bxb5 {[%emt 0:01:47]} Reb8 {[%emt 0:00:31]} 23. Be2 {[%emt 0:01:37]} Bxg2 {[%emt 0:04:47]} 24. Rhg1 {[%emt 0:04:50]} Be4 {[%emt 0:11:37]} 25. Bxh5 {[%emt 0:01:00]} Nc6 {[%emt 0:00:23]} 26. Rc1 {[%emt 0:15:35]} Nb4 {[%emt 0:04:21]} 27. Be2 {[%emt 0:04:40]} a5 {[%emt 0:00:56]} 28. Bd1 {[%emt 0:03:20]} Rb7 {[%emt 0:05:54]} 29. Bd2 {[%emt 0:01:08]} Nd3 {[%emt 0:05:48]} 30. Bc2 {[%emt 0:00:09]} Nxf2 {[%emt 0:00:15]} 31. Rcf1 {[%emt 0:01:56]} Bxc2 {[%emt 0:00:40]} 32. Rxf2 {[%emt 0:00:02]} Bg6 {[%emt 0:00:53]} 33. h4 {[%emt 0:00:38]} Rb5 {[%emt 0:00:14]} 34. Rc1 {[%emt 0:02:05]} Rd5 {[%emt 0:01:19]} 35. Rf4 {[%emt 0:00:36]} Rad8 {[%emt 0:01:09]} 36. b3 {[%emt 0:01:55]} a4 {[%emt 0:00:55]} 37. Rc4 {[%emt 0:00:39]} axb3 {[%emt 0:00:22]} 38. axb3 {[%emt 0:00:03]} Bd3 {[%emt 0:00:30]} 39. Rc5 {[%emt 0:01:38]} Rxd4 {[%emt 0:00:54]} 40. Rc8 {[%emt 0:01:40]} R4d7 {[%emt 0:01:18]} 41. Rxd8+ {[%emt 0:30:28]} Rxd8 {[%emt 0:30:09]} 42. Bc3 {[%emt 0:00:39]} Rc8 {[%emt 0:01:28]} 43. Kb2 {[%emt 0:00:00]} f5 {[%emt 0:00:00]} 44. Rd4 {[%emt 0:00:00]} Be4 {[%emt 0:00:00]} 45. b4 {[%emt 0:00:00]} Rb8 {[%emt 0:00:00]} 46. Kc1 {[%emt 0:00:00]} f6 {[%emt 0:00:00]} 47. Kd2 {[%emt 0:00:00]} Kh7 {[%emt 0:00:00]} 48. Rd7 {[%emt 0:00:00]} Kh6 {[%emt 0:00:00]} 49. Ke1 {[%emt 0:00:00]} Rb6 {[%emt 0:00:00]} 50. Kf2 {[%emt 0:00:00]} g5 {[%emt 0:00:00]} 51. Bd4 {[%emt 0:00:00]} Ra6 {[%emt 0:00:00]} 52. b5 {[%emt 0:00:00]} Ra2+ {[%emt 0:00:00]} 53. Ke3 {[%emt 0:00:00]} gxh4 $17 {[%emt 0:01:48]} 54. b6 {[%emt 0:00:02]} h3 {[%emt 0:02:12]} 55. b7 {[%emt 0:00:29]} Ra3+ {[%emt 0:00:04]} 56. Kf2 {[%emt 0:01:09]} Rb3 {[%emt 0:00:07]} 57. Rd8 {[%emt 0:01:12]} Bxb7 {[%emt 0:00:55]} 58. Rh8+ {[%emt 0:00:43]} Kg7 {[%emt 0:00:39]} 59. Rh4 {[%emt 0:00:15]} Bg2 {[%emt 0:00:24]} 60. Be3 {[%emt 0:01:01]} Rb2+ {[%emt 0:01:10]} 61. Kg1 {[%emt 0:01:13]} Re2 {[%emt 0:00:30]} 62. Bf4 {[%emt 0:00:35]} Re8 {[%emt 0:00:53]} 63. Kf2 {[%emt 0:01:05]} Re4 {[%emt 0:00:39]} 64. Kg1 {[%emt 0:00:48]} Kf7 {[%emt 0:00:51]} 65. Kf2 {[%emt 0:00:30]} Ke6 {[%emt 0:00:17]} 66. Kg3 {[%emt 0:00:14]} Rc4 {[%emt 0:00:53]} 67. Rh8 {[%emt 0:00:16]} Rc3+ {[%emt 0:00:10]} 68. Kf2 {[%emt 0:00:15]} Rf3+ {[%emt 0:00:08]} 0-1

[Event "EYTCC Open U18 2018"]
[Site "Bad Blankeburg"]
[Date "2018.07.16"]
[Round "5"]
[White "Vasiesiu, Victor"]
[Black "Morgunov, Daniel"]
[Result "1-0"]
[ECO "C54"]
[WhiteElo "2295"]
[BlackElo "2346"]
[Annotator "NA"]
[PlyCount "71"]
[EventDate "2018.07.12"]
[EventType "swiss"]
[EventCountry "GER"]
[SourceTitle "playchess.com"]
[Source "ChessBase"]
[SourceQuality "1"]
[TimeControl "40/5400+30:1800+30"]

1. e4 {[%emt 0:00:00]} e5 {[%emt 0:00:00]} 2. Nf3 {[%emt 0:00:00]} Nc6 {[%emt 0:00:00]} 3. Bc4 {[%emt 0:00:44]} Bc5 {[%emt 0:00:00]} 4. c3 {[%emt 0:02:32]} Nf6 {[%emt 0:00:00]} 5. d3 {[%emt 0:00:05]} a6 {[%emt 0:00:06]} 6. h3 {[%emt 0:02:32]} Ba7 {[%emt 0:00:59]} 7. Bb3 {[%emt 0:00:55]} d6 {[%emt 0:00:07]} 8. Nbd2 {[%emt 0:00:14]} O-O {[%emt 0:04:59]} 9. Nf1 {[%emt 0:00:24]} Be6 {[%emt 0:07:02] C54: Giuoco Piano: 4 c3 Nf6, main lines with 5 d4 and 5 d3} (9... Ne7 10. Ng3 Ng6 11. O-O h6 12. d4 Re8 13. Re1 b5 14. Be3 Bb7 15. Bc2 exd4 16. Nxd4 d5 17. Nb3 Bxe3 18. Rxe3 {½-½ (55) Miton,K (2584)-Bacrot,E (2725) Riadh 2017}) 10. Ng3 {[%emt 0:01:35]} Bxb3 {[%emt 0:01:02]} 11. axb3 {[%emt 0:00:42]} h6 {[%emt 0:03:34]} 12. O-O {[%emt 0:05:38]} d5 {[%emt 0:01:56]} 13. Qe2 {[%emt 0:00:10]} Qd7 {[%emt 0:02:23] LiveBook: 3 Partien} 14. Nh4 {[%emt 0:04:47]} Rad8 {[%emt 0:06:28]} 15. Nh5 {[%emt 0:15:56]} Qe6 $146 {[%emt 0:09:43]} ({Predecessor:} 15... Nxh5 16. Qxh5 dxe4 17. dxe4 {0-1 (64) Van Weersel,A (2233)-Genba,V (2429) Pardubice 2008}) 16. Nxf6+ {[%emt 0:10:19]} Qxf6 {[%emt 0:00:16]} 17. Nf5 {[%emt 0:00:08]} Ne7 {[%emt 0:06:33]} 18. Nxe7+ {[%emt 0:08:40]} Qxe7 19. b4 {[%emt 0:00:14]} Qd7 {[%emt 0:13:11]} 20. Ra5 {[%emt 0:06:12]} Qe6 {[%emt 0:11:27]} 21. Re1 {[%emt 0:04:23]} Rfe8 {[%emt 0:10:48]} 22. exd5 {[%emt 0:01:48]} Rxd5 {[%emt 0:00:07]} 23. Rxd5 {[%emt 0:00:03]} Qxd5 {[%emt 0:00:06]} 24. d4 {[%emt 0:00:06]} e4 {[%emt 0:04:53]} 25. Bf4 {[%emt 0:03:51]} c6 {[%emt 0:02:38]} 26. Qg4 {[%emt 0:02:52]} Re6 {[%emt 0:05:19]} 27. Re3 {[%emt 0:01:44]} f5 {[%emt 0:00:50]} 28. Qh5 {[%emt 0:02:50]} Re7 {[%emt 0:07:14]} 29. Rg3 {[%emt 0:01:25]} Qf7 {[%emt 0:00:06]} 30. Qxh6 {[%emt 0:00:32]} Kf8 {[%emt 0:01:41]} 31. Qd6 {[%emt 0:02:23]} Ke8 {[%emt 0:00:36]} 32. Bg5 {[%emt 0:00:48]} Rd7 {[%emt 0:00:31]} 33. Qe5+ {[%emt 0:00:05]} Kf8 {[%emt 0:00:09]} 34. Bh6 {[%emt 0:00:11]} Qe8 {[%emt 0:01:44]} 35. Bxg7+ {[%emt 0:00:47]} Kf7 {[%emt 0:00:27]} 36. Qf6+ {[%emt 0:00:20]} 1-0

[Event "EYTCC Open U18 2018"]
[Site "Bad Blankeburg"]
[Date "2018.07.16"]
[Round "5"]
[White "Stevanic, David"]
[Black "Siniauski, Artsiom"]
[Result "1-0"]
[ECO "C11"]
[WhiteElo "2253"]
[BlackElo "1967"]
[Annotator "NA"]
[PlyCount "149"]
[EventDate "2018.07.12"]
[EventType "swiss"]
[EventCountry "GER"]
[SourceTitle "playchess.com"]
[Source "ChessBase"]
[SourceQuality "1"]
[BlackTeam "Belarus"]
[BlackTeamCountry "BLR"]
[TimeControl "40/5400+30:1800+30"]

1. e4 {[%emt 0:00:00]} e6 {[%emt 0:00:00]} 2. d4 {[%emt 0:00:00]} d5 {[%emt 0:00:00]} 3. Nc3 {[%emt 0:00:00]} Nf6 {[%emt 0:00:00]} 4. e5 {[%emt 0:00:00]} Nfd7 {[%emt 0:00:00]} 5. f4 {[%emt 0:00:00]} c5 {[%emt 0:00:00]} 6. Nf3 {[%emt 0:00:00]} Nc6 {[%emt 0:00:00]} 7. Be3 {[%emt 0:00:06]} a6 {[%emt 0:00:08]} 8. Qd2 {[%emt 0:00:33]} b5 {[%emt 0:00:07]} 9. Nd1 {[%emt 0:01:23]} Qb6 {[%emt 0:00:48]} 10. Be2 {[%emt 0:01:23]} cxd4 {[%emt 0:07:24] C11: Französische Verteidigung} 11. Nxd4 {[%emt 0:00:28]} Bc5 {[%emt 0:00:21]} (11... Nxd4 12. Bxd4 Bc5 13. c3 b4 14. O-O a5 15. Bg4 O-O 16. Ne3 Ba6 17. Rfe1 g6 18. Nxd5 exd5 19. Bxd7 {0-1 (43) Ponomariov,R (2712)-Wang,H (2717) Huaian 2016}) 12. c3 {[%emt 0:00:35]} Bb7 {[%emt 0:09:38]} 13. O-O {[%emt 0:00:36]} b4 {[%emt 0:01:00]} 14. Kh1 {[%emt 0:13:12]} bxc3 {[%emt 0:05:56]} 15. bxc3 {[%emt 0:00:35]} Na5 $146 {[%emt 0:01:02]} ({Vorgänger:} 15... O-O $11 16. Nb2 Qa5 17. Qc2 Rac8 18. Nb3 Qa3 19. Bc1 Be7 20. Bd3 f5 21. Qe2 Na5 22. Nc4 Nxb3 23. Bxa3 Bxa3 24. axb3 dxc4 25. Bxc4 {1-0 (25) Ponkratov,P (2593)-Papayan,O (2285) Khanty-Mansiysk 2011}) 16. Nb2 {[%emt 0:08:04]} O-O {[%emt 0:09:11]} 17. Rf3 {[%emt 0:08:15]} Bc6 {[%emt 0:11:56]} 18. Rh3 {[%emt 0:14:24]} Rab8 {[%emt 0:04:47]} 19. Nd1 {[%emt 0:03:31]} Nc4 {[%emt 0:04:36]} 20. Bxc4 {[%emt 0:01:43]} dxc4 {[%emt 0:00:18]} 21. Qc2 {[%emt 0:02:42]} h6 {[%emt 0:09:23]} 22. f5 {[%emt 0:10:16]} exf5 {[%emt 0:06:21]} 23. Nxf5 {[%emt 0:09:12]} Bxe3 {[%emt 0:04:38]} 24. Rxe3 {[%emt 0:08:28]} Nc5 {[%emt 0:05:21]} 25. Qe2 {[%emt 0:05:38]} Bd7 {[%emt 0:04:42]} 26. Nd6 {[%emt 0:02:03]} Be6 {[%emt 0:05:24]} 27. Nxc4 {[%emt 0:02:04]} Bxc4 {[%emt 0:00:56]} 28. Qxc4 {[%emt 0:00:05]} Ne6 {[%emt 0:00:05]} 29. Re1 {[%emt 0:02:08]} Rfc8 {[%emt 0:00:28]} 30. Qg4 {[%emt 0:00:56]} Rc5 {[%emt 0:01:46]} 31. Qg3 {[%emt 0:01:30]} Rbc8 {[%emt 0:00:33]} 32. Rc1 {[%emt 0:00:27]} Qa5 {[%emt 0:00:38]} 33. h3 {[%emt 0:00:37]} Qxa2 {[%emt 0:05:09]} 34. Nf2 {[%emt 0:01:29]} Rxc3 {[%emt 0:01:16]} 35. Rxc3 {[%emt 0:00:35]} Rxc3 {[%emt 0:00:03]} 36. Qxc3 {[%emt 0:00:06]} Qxf2 {[%emt 0:00:04]} 37. Rc1 {[%emt 0:02:22]} Nd4 {[%emt 0:01:02]} 38. Qc8+ Kh7 {[%emt 0:00:06]} 39. Qxa6 {[%emt 0:02:01]} Qe3 {[%emt 0:00:54]} 40. Rd1 {[%emt 0:01:07]} Ne6 {[%emt 0:03:18]} 41. Qd3+ {[%emt 0:13:49]} Qxd3 {[%emt 0:00:10]} 42. Rxd3 {[%emt 0:00:04]} Ng5 {[%emt 0:05:44]} 43. Rd7 {[%emt 0:04:04]} Kg8 {[%emt 0:01:20]} 44. Rd8+ {[%emt 0:01:24]} Kh7 {[%emt 0:00:08]} 45. Rf8 {[%emt 0:01:28]} g6 {[%emt 0:01:40]} 46. h4 {[%emt 0:05:07]} Kg7 {[%emt 0:00:23]} 47. Re8 $2 {[%emt 0:03:33]} (47. hxg5 Kxf8 48. gxh6) 47... Ne6 {[%emt 0:01:51]} 48. g4 {[%emt 0:00:46]} Nc7 {[%emt 0:01:45]} 49. Re7 {[%emt 0:01:07]} Nd5 {[%emt 0:00:03]} 50. Rd7 {[%emt 0:00:32]} Nf4 {[%emt 0:00:04]} 51. Kh2 {[%emt 0:00:29]} Ne6 {[%emt 0:00:26]} 52. Kg3 {[%emt 0:00:15]} Nc5 {[%emt 0:00:09]} 53. Ra7 {[%emt 0:00:27]} Ne6 {[%emt 0:00:41]} 54. Kf3 {[%emt 0:00:12]} Nc5 {[%emt 0:03:24]} 55. Ke3 {[%emt 0:00:09]} Kf8 {[%emt 0:01:52]} 56. Kd4 {[%emt 0:01:19]} Ne6+ {[%emt 0:00:52]} 57. Ke4 {[%emt 0:00:16]} Nc5+ {[%emt 0:01:15]} 58. Kd5 $18 {[%emt 0:00:10]} Ne6 {[%emt 0:00:04]} 59. Ra8+ {[%emt 0:01:56]} Kg7 {[%emt 0:00:59]} 60. Ra4 {[%emt 0:00:34]} Kf8 {[%emt 0:01:52]} 61. Kd6 {[%emt 0:00:30]} g5 {[%emt 0:00:10]} 62. h5 {[%emt 0:00:18]} Nf4 {[%emt 0:00:03]} 63. Ra8+ {[%emt 0:00:20]} Kg7 {[%emt 0:00:04]} 64. Rc8 {[%emt 0:01:27]} Ne6 {[%emt 0:01:29]} 65. Ke7 {[%emt 0:00:29]} Nf4 {[%emt 0:00:16]} 66. Rd8 {[%emt 0:00:56]} Ne6 {[%emt 0:06:10]} 67. Rd7 {[%emt 0:00:21]} Nc5 {[%emt 0:03:20]} 68. Rd6 {[%emt 0:01:45]} Ne4 {[%emt 0:01:25]} 69. Rf6 {[%emt 0:00:16]} Nxf6 {[%emt 0:00:42]} 70. exf6+ {[%emt 0:00:05]} Kg8 {[%emt 0:00:05]} 71. Ke8 {[%emt 0:00:04]} Kh8 {[%emt 0:00:06]} 72. Kxf7 {[%emt 0:00:05]} Kh7 {[%emt 0:00:03]} 73. Ke7 {[%emt 0:00:09]} Kh8 {[%emt 0:00:05]} 74. f7 {[%emt 0:00:07]} Kh7 {[%emt 0:00:04]} 75. f8=R {[%emt 0:00:09]} 1-0